fUSD/lending_fUSD_20240801
["ID","MTS","AMOUNT","RATE_DAILY","PERIOD"]
[333842597,1722546647010,-1600.0,0.000244,8]
[333842599,1722546647019,-150.0,0.00024423,2]
[333842601,1722546647030,-150.0,0.00024425,2]
[333842603,1722546647039,-150.0,0.0002443,2]
[333842605,1722546647049,-150.0,0.00024433,2]
[333842607,1722546647058,-150.0,0.00024433,2]
[333842609,1722546647068,-1000.0,0.00024448,2]
[333842611,1722546647077,-150.0,0.0002445,2]
[333842613,1722546647087,-150.0,0.00024457,2]
[333842615,1722546647096,-150.0,0.00024465,2]
[333842616,1722546647105,-150.0,0.00024468,2]
[333842618,1722546647115,-150.0,0.00024471,2]
[333842620,1722546647124,-150.0,0.00024485,2]
[333842622,1722546647134,-150.0,0.00024488,2]
[333842624,1722546647144,-150.0,0.00024494,2]
[333842626,1722546647153,-150.0,0.00024498,2]
[333842628,1722546647163,-150.0,0.00024499,2]
[333842630,1722546647173,-1600.0,0.000245,8]
[333842632,1722546647182,-150.0,0.00024506,2]
[333842634,1722546647192,-150.0,0.00024517,2]
[333842636,1722546647201,-150.0,0.00024521,2]
[333842638,1722546647212,-500.0,0.00024522,2]
[333842640,1722546647222,-150.0,0.00024523,2]
[333842642,1722546647231,-150.0,0.00024529,2]
[333842644,1722546647244,-150.0,0.00024532,2]
[333842646,1722546647254,-150.0,0.00024533,2]
[333842648,1722546647263,-150.0,0.00024556,2]
[333842650,1722546647273,-150.0,0.00024584,2]
[333842652,1722546647283,-150.0,0.00024589,2]
[333842654,1722546647294,-150.0,0.00024595,2]
[333842656,1722546647304,-1600.0,0.000246,8]
[333842658,1722546647315,-150.0,0.00024601,2]
[333842660,1722546647324,-150.0,0.00024607,2]
[333842662,1722546647334,-150.0,0.00024612,2]
[333842664,1722546647344,-150.0,0.00024614,2]
[333842666,1722546647353,-500.0,0.00024616,2]
[333842668,1722546647364,-150.0,0.00024623,2]
[333842670,1722546647374,-150.0,0.00024626,2]
[333842672,1722546647384,-150.0,0.00024633,2]
[333842674,1722546647394,-1800.0,0.00024636,2]
[333842676,1722546647404,-150.0,0.00024638,2]
[333842678,1722546647414,-151.0,0.00024658,2]
[333842680,1722546647423,-150.0,0.00024662,2]
[333842682,1722546647432,-150.0,0.00024685,2]
[333842684,1722546647442,-150.0,0.00024687,2]
[333842686,1722546647452,-150.0,0.00024688,2]
[333842688,1722546647461,-150.0,0.0002469,2]
[333842690,1722546647471,-150.0,0.00024696,2]
[333842692,1722546647481,-150.0,0.000247,2]
[333842694,1722546647493,-1600.0,0.000247,9]
[333842696,1722546647503,-150.0,0.00024702,2]
[333842698,1722546647513,-150.0,0.00024702,2]
[333842700,1722546647523,-150.0,0.00024711,2]
[333842702,1722546647532,-150.0,0.00024716,2]
[333842704,1722546647542,-150.0,0.00024735,2]
[333842706,1722546647552,-150.0,0.00024739,2]
[333842708,1722546647562,-150.0,0.00024739,2]
[333842710,1722546647572,-150.0,0.00024741,2]
[333842712,1722546647582,-150.0,0.00024742,2]
[333842714,1722546647592,-500.0,0.0002476,2]
[333842716,1722546647601,-150.0,0.00024764,2]
[333842718,1722546647611,-150.0,0.00024776,2]
[333842720,1722546647620,-150.0,0.00024777,2]
[333842722,1722546647629,-2000.0,0.000248,9]
[333842724,1722546647639,-150.0,0.00024801,2]
[333842726,1722546647648,-150.0,0.00024802,2]
[333842728,1722546647657,-150.0,0.00024806,2]
[333842730,1722546647666,-150.0,0.00024813,2]
[333842732,1722546647676,-150.0,0.00024815,2]
[333842734,1722546647686,-150.0,0.00024828,2]
[333842736,1722546647696,-150.0,0.00024828,2]
[333842738,1722546647705,-150.0,0.0002483,2]
[333842740,1722546647714,-150.0,0.00024836,2]
[333842741,1722546647724,-150.0,0.00024845,2]
[333842744,1722546647733,-150.0,0.00024848,2]
[333842745,1722546647747,-150.0,0.00024851,2]
[333842747,1722546647759,-150.0,0.00024851,2]
[333842749,1722546647768,-150.0,0.00024867,2]
[333842751,1722546647778,-150.0,0.00024875,2]
[333842753,1722546647787,-150.0,0.00024875,2]
[333842755,1722546647796,-150.0,0.00024879,2]
[333842757,1722546647805,-500.0,0.00024879,2]
[333842759,1722546647815,-150.0,0.00024883,2]
[333842761,1722546647825,-150.32,0.00024893,2]
[333842763,1722546647839,-156.44373846,0.000249,2]
[333842765,1722546647849,-156.44373846,0.000249,2]
[333842767,1722546647859,-156.44373846,0.000249,2]
[333842769,1722546647869,-156.44373846,0.000249,2]
[333842771,1722546647879,-156.44373846,0.000249,2]
[333842773,1722546647890,-156.44373846,0.000249,2]
[333842775,1722546647900,-156.44373846,0.000249,2]
[333842777,1722546647911,-156.44373846,0.000249,2]
[333842780,1722546647923,-156.44373846,0.000249,2]
[333842782,1722546647933,-156.44373846,0.000249,2]
[333842784,1722546647943,-156.44373846,0.000249,2]
[333842786,1722546647957,-156.44373846,0.000249,2]
[333842788,1722546647967,-156.44373846,0.000249,2]
[333842790,1722546647977,-156.44373846,0.000249,2]
[333842792,1722546647986,-156.44373846,0.000249,2]
[333842794,1722546648005,-156.44373846,0.000249,2]
[333842796,1722546648015,-156.44373846,0.000249,2]
[333842798,1722546648025,-156.94,0.000249,2]
[333842799,1722546648035,-563.27245845,0.000249,2]
[333842800,1722546648045,-563.27245845,0.000249,2]
[333842801,1722546648055,-563.27245845,0.000249,2]
[333842802,1722546648064,-563.27245845,0.000249,2]
[333842803,1722546648074,-563.27245845,0.000249,2]
[333842804,1722546648083,-563.27245845,0.000249,2]
[333842805,1722546648094,-563.27245845,0.000249,2]
[333842806,1722546648104,-563.27245845,0.000249,2]
[333842807,1722546648114,-563.27245845,0.000249,2]
[333842809,1722546648125,-563.27245845,0.000249,2]
[333842811,1722546648135,-563.27245845,0.000249,2]
[333842813,1722546648145,-563.27245845,0.000249,2]
[333842815,1722546648154,-563.27245845,0.000249,2]
[333842817,1722546648164,-563.27245845,0.000249,2]
[333842819,1722546648174,-563.27245845,0.000249,2]
[333842821,1722546648185,-563.27245845,0.000249,2]
[333842823,1722546648194,-563.27245845,0.000249,2]
[333842825,1722546648204,-563.27245845,0.000249,2]
[333842827,1722546648214,-563.27245845,0.000249,2]
[333842829,1722546648224,-563.77,0.000249,2]
[333842831,1722546648233,-432.96511071,0.000249,2]
[333842833,1722546648248,-2936.49897258,0.000249,2]
[333842835,1722546648258,-150.0,0.0002491,2]
[333842837,1722546648268,-150.0,0.00024922,2]
[333842839,1722546648278,-150.0,0.00024927,2]
[333842841,1722546648287,-150.0,0.00024942,2]
[333842843,1722546648297,-150.0,0.00024943,2]
[333842845,1722546648307,-150.0,0.00024956,2]
[333842847,1722546648317,-150.0,0.0002496,2]
[333842849,1722546648328,-150.0,0.00024963,2]
[333842851,1722546648337,-150.0,0.00024965,2]
[333842853,1722546648348,-150.0,0.00024969,2]
[333842855,1722546648357,-150.0,0.00024969,2]
[333842857,1722546648367,-150.0,0.00024976,2]
[333842859,1722546648377,-150.0,0.00024978,2]
[333842861,1722546648387,-2738.924645,0.00024983,2]
[333842863,1722546648397,-2709.8158218,0.00024983,2]
[333842865,1722546648407,-2680.7069986,0.00024983,2]
[333842867,1722546648416,-2651.5981754,0.00024983,2]
[333842869,1722546648426,-2622.4893521,0.00024983,2]
[333842871,1722546648436,-348.9012898,0.00024983,2]
[333842873,1722546648445,-345.1932265,0.00024983,2]
[333842875,1722546648455,-341.4851632,0.00024983,2]
[333842877,1722546648465,-337.7770999,0.00024983,2]
[333842879,1722546648475,-334.0690365,0.00024983,2]
[333842881,1722546648485,-264.609316,0.00024983,7]
[333842883,1722546648498,-264.609316,0.00024983,7]
[333842885,1722546648508,-151.0,0.00024983,7]
[333842887,1722546648517,-9252.2999063,0.00024983,2]
[333842889,1722546648527,-9153.9680435,0.00024983,2]
[333842891,1722546648536,-9055.6361806,0.00024983,2]
[333842893,1722546648546,-8957.3043178,0.00024983,2]
[333842895,1722546648556,-8858.972455,0.00024983,2]
[333842897,1722546648565,-1406.9687869,0.00024983,2]
[333842899,1722546648574,-1396.8366965,0.00024983,2]
[333842901,1722546648584,-1386.7046062,0.00024983,2]
[333842903,1722546648594,-1376.5725158,0.00024983,2]
[333842905,1722546648603,-1366.4404255,0.00024983,2]
[333842907,1722546648613,-150.0,0.00024989,2]
[333842909,1722546648623,-150.0,0.00024992,2]
[333842911,1722546648633,-150.0,0.00024996,2]
[333842913,1722546648642,-170623.0,0.00024999,2]
[333842915,1722546648652,-157.32856193,0.00024999,2]
[333842917,1722546648662,-158.25392866,0.00025,2]
[333842919,1722546648672,-7779.74528753,0.00025,2]
[333842921,1722546648682,-891116.85256374,0.00025,2]
[333843092,1722546650519,-23788.9153392,0.00025,2]
[333843095,1722546650531,-435.35854429,0.00025,2]
[333843097,1722546650543,-3126.48485974,0.00025,2]
[333843099,1722546650555,-301.5270011,0.00025,2]
[333843105,1722546650602,-649.20351135,0.00012391,2]
[333843107,1722546650612,-1074.0,0.00013903,2]
[333843109,1722546650622,-704.30531431,0.0002,2]
[333843111,1722546650632,-4054.67277434,0.00025,2]
[333843113,1722546650646,-2596.94440182,0.00025,2]
[333843115,1722546650657,-307.315,0.00025,2]
[333843118,1722546650669,-31971.56757775,0.00025,2]
[333843120,1722546650680,-3470.13415581,0.00025,2]
[333843122,1722546650691,-800.20287182,0.00025,2]
[333843124,1722546650705,-655.75999999,0.00025,2]
[333843132,1722546650778,-708.18,9.449e-05,2]
[333843135,1722546650792,-204.800292,9.449e-05,2]
[333843137,1722546650804,-232.20948266,0.00011206,2]
[333843139,1722546650816,-905.73745011,0.00011206,2]
[333843141,1722546650827,-265.17493776,0.00012818,2]
[333843143,1722546650839,-522.2943292,0.00013,2]
[333843145,1722546650848,-151.0,0.00020999,2]
[333843147,1722546650858,-151.0,0.00024983,7]
[333843149,1722546650868,-407977.71651458,0.00025,2]
[333843191,1722546651286,-500.0,0.00019372,2]
[333843193,1722546651296,-500.0,0.00019372,2]
[333843195,1722546651306,-155.0,0.00019387,2]
[333843197,1722546651316,-2085.9,0.00025,2]
[333843199,1722546651327,-1942.3269,0.00025,2]
[333843202,1722546651343,-500.0,0.00019372,2]
[333843204,1722546651354,-241.09746142,0.00025,2]
[333843206,1722546651366,-825.6247998,0.00025,2]
[333843223,1722546651527,-2596.46098763,0.00025,2]
[333843857,1722547074843,105920.0,0.00025,60]
[333843860,1722547120890,400.0,0.00025768,120]
[333843866,1722547486325,2804.0,0.00025,60]
[333843867,1722547503328,921.86702665,0.00027,120]
[333843870,1722547640345,200.0,0.00026065,120]
[333843883,1722547831663,-1569.19674811,0.00010779,2]
[333843884,1722547831674,-1015.91254427,0.000108,2]
[333843885,1722547831686,-624.98625573,0.000108,2]
[333843886,1722547831696,-300.0,0.00010879,2]
[333843887,1722547831705,-150.0,0.00010879,2]
[333843888,1722547831715,-29.48307244,0.0001088,2]
[333843889,1722547831726,-555.90330277,0.0001088,2]
[333843890,1722547831738,-561.51132701,0.0001088,2]
[333843891,1722547831750,-339095.36144953,0.0001088,2]
[333843892,1722547831760,-12028.86768816,0.0001088,2]
[333843893,1722547831770,-1192.0183,0.000109,2]
[333843894,1722547831780,-1112.8407,0.000109,2]
[333843895,1722547831790,-5005.357,0.000109,2]
[333843896,1722547831801,-2467.7191,0.000109,2]
[333843897,1722547831810,-3921.9331,0.000109,2]
[333843898,1722547831820,-286.82253218,0.000109,2]
[333843899,1722547831830,-150.2,0.0001099,2]
[333843900,1722547831839,-39938.52973818,0.0001099,3]
[333843901,1722547831848,-150.2,0.0001099,2]
[333843902,1722547831858,-150.2,0.0001099,2]
[333843903,1722547831867,-150.2,0.0001099,2]
[333843904,1722547831877,-150.2,0.0001099,2]
[333843905,1722547831886,-150.2,0.0001099,2]
[333843906,1722547831895,-150.2,0.0001099,2]
[333843907,1722547831904,-150.2,0.0001099,2]
[333843908,1722547831914,-150.2,0.0001099,2]
[333843909,1722547831924,-499.99,0.00011,2]
[333843910,1722547831934,-52942.47369694,0.00011,2]
[333843911,1722547831945,-327.85685687,0.00011,2]
[333843912,1722547831956,-1286.32241983,0.00011,2]
[333843913,1722547831967,-17579.4421642,0.00011,2]
[333843914,1722547831979,-797780.58831514,0.00011,2]
[333843916,1722547831990,-298.3,0.00011,2]
[333843918,1722547832001,-341.48088377,0.00011,2]
[333843928,1722547833932,-13383.1972599,0.00011,2]
[333843929,1722547833944,-4731.55964216,0.00011,2]
[333843930,1722547833957,-488.32341085,0.00011,2]
[333843931,1722547833976,-1865.69249295,0.00011,2]
[333843932,1722547834006,-1549.74687682,0.00011,2]
[333843933,1722547834019,-4655.11259317,0.00011,2]
[333843934,1722547834031,-360.67999992,0.00011,2]
[333843935,1722547834043,-872.67905712,0.00011,2]
[333843936,1722547834055,-6558.09753364,0.00011,2]
[333843937,1722547834091,-2481.20419989,0.00011,2]
[333843938,1722547834104,-1242.17072082,0.00011,2]
[333843940,1722547837729,-1107.2408442,0.00011,2]
[333843941,1722547837837,-3692.52875182,0.00011,2]
[333843942,1722547837907,-8179.99999998,0.00011,2]
[333843943,1722547838299,-614.60712979,0.00011,2]
[333843979,1722547840982,-229.33065478,0.00010899,2]
[333843980,1722547840992,-990.43313748,0.00010997,2]
[333843981,1722547841002,-2486.59173362,0.00011,2]
[333843982,1722547841075,-6315.3454475,0.00011,2]
[333843983,1722547841087,-2490.75,0.00011,2]
[333843984,1722547841165,-338800.000007,0.00011,2]
[333843986,1722547841260,-1620.40557737,0.00011,2]
[333843988,1722547841273,-2028.24217741,0.00011,2]
[333843990,1722547841286,-11222.92795268,0.00011,2]
[333844118,1722547842692,-16896.2586345,0.00011,2]
[333844119,1722547842781,-368.5,0.00011,2]
[333844120,1722547842792,-409067.18578154,0.00011,2]
[333844121,1722547842872,-3283.5904435,0.00011,2]
[333844123,1722547842957,-3313.60911296,0.00011,2]
[333844277,1722547846017,-856.2321508,0.00011,3]
[333844278,1722547846047,-454.958,0.00011,3]
[333844279,1722547846060,-3166.50010804,0.00011,3]
[333844280,1722547846072,-24233.5053455,0.00011,3]
[333844281,1722547846172,-1799.29203779,0.00011,3]
[333844295,1722547993777,677.0,0.000178,120]
[333844296,1722547994836,677.0,0.0001779,120]
[333844297,1722547995288,677.0,0.0001778,120]
[333844298,1722547995759,677.0,0.0002291,120]
[333844299,1722547996225,677.0,0.000229,120]
[333844301,1722547996681,677.0,0.0002289,120]
[333844302,1722547997191,677.0,0.0002298,120]
[333844303,1722547997660,677.0,0.0002297,120]
[333844304,1722547998121,677.0,0.0002498,120]
[333844305,1722547998633,682.49,0.0002497,120]
[333844311,1722548123241,160.33,0.00013589,30]
[333844313,1722548135286,151.080206,0.00025,62]
[333844314,1722548136234,151.080206,0.00025,62]
[333844315,1722548136909,151.080206,0.00025,62]
[333844316,1722548137907,151.080206,0.00025,62]
[333844317,1722548138351,151.080206,0.00025,62]
[333844319,1722548141026,151.080206,0.00025,62]
[333844320,1722548142023,151.080206,0.00025,62]
[333844321,1722548147299,151.080206,0.00025,63]
[333844322,1722548147365,151.080206,0.00025,63]
[333844323,1722548147408,151.080206,0.00025,63]
[333844324,1722548147909,151.080206,0.00025,63]
[333844325,1722548148480,151.080206,0.00025,63]
[333844326,1722548149044,151.080206,0.00025,63]
[333844327,1722548149584,151.080206,0.00025,63]
[333844328,1722548154293,151.080206,0.00025,64]
[333844329,1722548154991,151.080206,0.00025,64]
[333844330,1722548155562,151.080206,0.00025,64]
[333844331,1722548156149,151.080206,0.00025,64]
[333844332,1722548156718,151.080206,0.00025,64]
[333844333,1722548159224,151.080206,0.00025,64]
[333844334,1722548159274,151.080206,0.00025,64]
[333844335,1722548161423,151.080206,0.00025,65]
[333844336,1722548162049,151.080206,0.00025,65]
[333844337,1722548162621,151.080206,0.00025,65]
[333844338,1722548163187,151.080206,0.00025,65]
[333844339,1722548163750,151.080206,0.00025,65]
[333844340,1722548164376,151.080206,0.00025,65]
[333844341,1722548165014,151.080206,0.00025,65]
[333844342,1722548176282,151.080206,0.00025,69]
[333844343,1722548176947,151.080206,0.00025,69]
[333844344,1722548177498,151.080206,0.00025,69]
[333844345,1722548178064,151.080206,0.00025,69]
[333844346,1722548178618,151.080206,0.00025,69]
[333844347,1722548179197,151.080206,0.00025,69]
[333844348,1722548179732,151.080206,0.00025,69]
[333844349,1722548184676,151.080206,0.00025,70]
[333844350,1722548184733,151.080206,0.00025,70]
[333844351,1722548184812,151.080206,0.00025,70]
[333844352,1722548185411,151.080206,0.00025,70]
[333844353,1722548185991,151.080206,0.00025,70]
[333844354,1722548186579,151.080206,0.00025,70]
[333844355,1722548187144,151.080206,0.00025,70]
[333844356,1722548198929,151.080206,0.00025,71]
[333844357,1722548199666,151.080206,0.00025,71]
[333844358,1722548200266,151.080206,0.00025,71]
[333844359,1722548200868,151.080206,0.00025,71]
[333844360,1722548201489,151.080206,0.00025,71]
[333844361,1722548202136,151.080206,0.00025,71]
[333844362,1722548202800,151.080206,0.00025,71]
[333844363,1722548206384,151.080206,0.00025,72]
[333844364,1722548208969,151.080206,0.00025,72]
[333844365,1722548209002,151.080206,0.00025,72]
[333844366,1722548209042,151.080206,0.00025,72]
[333844367,1722548209193,151.080206,0.00025,72]
[333844368,1722548209857,151.080206,0.00025,72]
[333844369,1722548210528,151.080206,0.00025,72]
[333844371,1722548222867,151.080206,0.00027,120]
[333844372,1722548223785,151.080206,0.00027,120]
[333844373,1722548224476,151.080206,0.00027,120]
[333844374,1722548225178,151.080206,0.00027,120]
[333844375,1722548225939,151.080206,0.00027,120]
[333844376,1722548226621,151.080206,0.00027,120]
[333844377,1722548234108,151.080206,0.00027,120]
[333844378,1722548234980,151.080206,0.00027,120]
[333844380,1722548253420,151.080206,0.00027,120]
[333844381,1722548271123,151.080206,0.00025,78]
[333844382,1722548277761,151.080206,0.00025,78]
[333844409,1722549032303,-1093.8968,0.0001078,2]
[333844410,1722549032313,-300.0,0.000108,2]
[333844411,1722549032323,-170.59489617,0.000109,2]
[333844412,1722549032332,-206.39758932,0.000109,2]
[333844413,1722549032342,-191.21502144,0.000109,2]
[333844414,1722549032354,-172.69,0.00010908,2]
[333844415,1722549032364,-150.0,0.00010959,2]
[333844416,1722549032374,-150.2,0.0001099,2]
[333844417,1722549032383,-1924.45221331,0.00010999,2]
[333844418,1722549032392,-150.0,0.00010999,2]
[333844419,1722549032402,-13397.60954812,0.00011,3]
[333844420,1722549032414,-653.07,0.00011,3]
[333844421,1722549032428,-9085.91543703,0.00011,3]
[333844422,1722549032469,-8619.42,0.00011,3]
[333844423,1722549032534,-882.40264769,0.00011,3]
[333844424,1722549032548,-1913.12,0.00011,3]
[333844425,1722549032559,-247185.41149682,0.00011,3]
[333844426,1722549032589,-297.04785907,0.00011,3]
[333844427,1722549032601,-331.9629089,0.00011,3]
[333844428,1722549032618,-833.79793316,0.00011,3]
[333844429,1722549032630,-318.86689986,0.00011,3]
[333844430,1722549032643,-280.74895594,0.00011,3]
[333844431,1722549032656,-6815.94265191,0.00011,3]
[333844432,1722549032667,-1554.30916422,0.00011,2]
[333844433,1722549032678,-13012.88187306,0.00011,2]
[333844438,1722549037980,-33278.88494011,0.00011,2]
[333844606,1722549040170,-1967.99507819,0.00011,2]
[333844608,1722549040187,-63175.00867555,0.00011,2]
[333844610,1722549040199,-2944.34240302,0.00011,2]
[333844613,1722549040211,-9101.3781579,0.00011,2]
[333844615,1722549040222,-8693.51986952,0.00011,2]
[333844617,1722549040234,-1381.24087936,0.00011,2]
[333844619,1722549040247,-2621.97314626,0.00011,2]
[333844622,1722549040260,-65295.7599346,0.00011,2]
[333844624,1722549040272,-3166.04903559,0.00011,2]
[333844626,1722549040283,-2314.74547626,0.00011,2]
[333844635,1722549040370,-397.1300186,0.00011,2]
[333844637,1722549040382,-2601.04238768,0.00011,2]
[333844639,1722549040394,-2290.24959688,0.00011,2]
[333844642,1722549040406,-318.645,0.00011,2]
[333844644,1722549040419,-1419.45381419,0.00011,2]
[333844646,1722549040436,-3363.1171214,0.00011,2]
[333844648,1722549040448,-881.21664269,0.00011,2]
[333844650,1722549040460,-418868.68107183,0.00011,2]
[333844653,1722549040472,-840.96512736,0.00011,2]
[333844941,1722549043131,-938.09435475,0.00011,2]
[333844943,1722549043143,-110654.12809905,0.00011,2]
[333844945,1722549043155,-367.69336575,0.00011,2]
[333844947,1722549043168,-361.6920653,0.00011,2]
[333844951,1722549043198,-503.19150413,0.00011,2]
[333844953,1722549043211,-2412.0,0.00011,2]
[333844955,1722549043224,-1559.45168708,0.00011,2]
[333844957,1722549043235,-273.88727203,0.00011,2]
[333844959,1722549043247,-120871.63918981,0.00011,2]
[333844961,1722549043262,-423524.35692056,0.00011,2]
[333844963,1722549043273,-1732.275,0.00011,2]
[333844965,1722549043284,-381.4185858,0.00011,2]
[333844967,1722549043296,-4526.756931,0.00011,2]
[333844970,1722549043308,-382.12258582,0.00011,2]
[333844972,1722549043320,-921.85786041,0.00011,2]
[333844974,1722549043331,-6400.89541296,0.00011,2]
[333844976,1722549043342,-33128.84010026,0.00011,2]
[333844978,1722549043354,-3067.36856786,0.00011,2]
[333844980,1722549043367,-752.79796392,0.00011,2]
[333844982,1722549043379,-641.5247125,0.00011,2]
[333844984,1722549043394,-814.55264413,0.00011,2]
[333844986,1722549043405,-8632.87567252,0.00011,2]
[333845216,1722549046232,-2007.07929185,0.00011,2]
[333845218,1722549046245,-361.43277495,0.00011,2]
[333845220,1722549046258,-52333.48844806,0.00011,2]
[333845222,1722549046270,-718.1047832,0.00011,2]
[333845225,1722549046283,-650.09,0.00011,2]
[333845227,1722549046295,-5966.55757461,0.00011,2]
[333845229,1722549046306,-1075.57632219,0.00011,2]
[333845231,1722549046318,-34052.36621617,0.00011,2]
[333845233,1722549046330,-1793.87083348,0.00011,2]
[333845235,1722549046341,-4348.2,0.00011,2]
[333845238,1722549046353,-1674.76306231,0.00011,2]
[333845240,1722549046365,-51418.54451114,0.00011,2]
[333845242,1722549046377,-5551.06842863,0.00011,2]
[333845244,1722549046389,-1346.35809449,0.00011,2]
[333845246,1722549046400,-8027.63642451,0.00011,2]
[333845248,1722549046411,-976.27132725,0.00011,2]
[333845250,1722549046422,-681.71006362,0.00011,2]
[333845252,1722549046434,-1225.89405444,0.00011,2]
[333845254,1722549046445,-304.85435309,0.00011,2]
[333845256,1722549046458,-289.78365456,0.00011,2]
[333845258,1722549046470,-269.6096277,0.00011,2]
[333845261,1722549046485,-300.16333141,0.00011,2]
[333845263,1722549046497,-882.94760634,0.00011,2]
[333845266,1722549046515,-1494.82037085,0.00011,2]
[333845268,1722549046528,-898.99522388,0.00011,2]
[333845275,1722549046602,-283.51720375,0.00011,2]
[333847000,1722549207647,218.92,9.451e-05,2]
[333847001,1722549262628,793.66787162,9.451e-05,2]
[333847002,1722549268911,987.41212838,9.451e-05,2]
[333847003,1722549343533,2000.0,1e-05,2]
[333847006,1722549432315,190.57872947,1e-05,2]
[333847007,1722549438151,268.06150372,1.212e-05,2]
[333847008,1722549448472,4860.29762253,1.212e-05,2]
[333847009,1722549472416,6054.0,0.00027,120]
[333847010,1722549508753,19684.01929505,5e-05,2]
[333847011,1722549594420,6189.63452429,5e-05,2]
[333847012,1722549597760,155.0,5e-05,2]
[333847013,1722549696253,253.75724126,6.061e-05,2]
[333847014,1722549706704,522.2943292,6.061e-05,2]
[333847015,1722549708855,312.6861538,6.061e-05,2]
[333847016,1722549762309,522.2943292,7.347e-05,2]
[333847017,1722549762542,19684.01929505,7.347e-05,2]
[333847018,1722549767421,207.97,8.242e-05,2]
[333847019,1722549793435,1096.91947505,7.347e-05,2]
[333847020,1722549924143,268.56466323,8.905e-05,2]
[333847043,1722550232229,-200.0,9.779e-05,2]
[333847044,1722550232240,-6304.0,9.779e-05,2]
[333847045,1722550232424,-10337.53199165,9.779e-05,2]
[333847046,1722550232439,-6636.11737844,9.779e-05,2]
[333847055,1722550238476,-622.35062991,9.779e-05,2]
[333847057,1722550238486,-150.0,9.888e-05,2]
[333847059,1722550238495,-189.22,9.901e-05,2]
[333847061,1722550238505,-92.57931542,9.934e-05,2]
[333847063,1722550238516,-774.17903405,9.934e-05,2]
[333847240,1722550240211,-1378.08165053,9.934e-05,2]
[333847242,1722550240222,-198.8,9.978e-05,2]
[333847244,1722550240231,-500.0,9.988e-05,2]
[333847246,1722550240241,-50.80580714,0.00010073,2]
[333847248,1722550240252,-199.19419286,0.00010073,2]
[333847250,1722550240262,-4089.74,0.00010091,2]
[333847252,1722550240271,-1000.0,0.0001014,2]
[333847254,1722550240281,-1353.02,0.00010233,2]
[333847256,1722550240290,-300.0,0.00010338,2]
[333847257,1722550240299,-193.4,0.00010339,2]
[333847259,1722550240309,-499.99,0.00010339,2]
[333847261,1722550240319,-236.15123999,0.0001034,2]
[333847263,1722550240328,-500.0,0.000105,3]
[333847265,1722550240337,-10287.96,0.00010561,2]
[333847267,1722550240347,-1220.31,0.00010561,2]
[333847269,1722550240356,-4583.33,0.0001057,2]
[333847271,1722550240366,-1000.0,0.000106,3]
[333847273,1722550240376,-1500.0,0.000107,3]
[333847276,1722550240388,-530.53203882,0.00010794,2]
[333847278,1722550240399,-414.41065523,0.00010794,2]
[333847280,1722550240409,-1256.27829447,0.00010794,2]
[333847282,1722550240418,-1065.76740136,0.00010794,2]
[333847284,1722550240428,-13016.32866993,0.00010794,2]
[333847286,1722550240437,-2000.0,0.000108,3]
[333847288,1722550240447,-11651.28405092,0.0001089,2]
[333847289,1722550240456,-727.6534,0.000109,2]
[333847290,1722550240466,-1000.0,0.000109,2]
[333847291,1722550240475,-492.003,0.000109,2]